bitfinex/quotes_SOLUSD_20241213
["timestamp","ask_amount","ask_price","bid_price","bid_amount"]
[1734121263497,0.5274509,224.24,224.18,8.45217478]
[1734121263695,0.5274509,224.24,224.15,8.45217478]
[1734121264605,23.776884,224.22,224.06,30.0]
[1734121264891,23.776884,224.22,224.09,8.45217478]
[1734121265207,23.776884,224.22,224.1,8.45217478]
[1734121265510,23.776884,224.22,224.11,8.45217478]
[1734121265694,11.1502,224.21,224.11,8.45217478]
[1734121265886,11.1502,224.21,224.12,8.45217478]
[1734121266094,11.1502,224.21,224.11,0.12549]
[1734121266307,11.1502,224.21,224.14,8.45217478]
[1734121266498,11.1502,224.21,224.11,0.12549]
[1734121266499,11.1502,224.21,224.13,8.45217478]
[1734121267331,11.1502,224.21,224.12,8.45217478]
[1734121269225,11.1502,224.21,224.11,8.45217478]
[1734121269405,23.776884,224.2,224.07,0.12549]
[1734121269608,23.776884,224.2,224.09,8.45217478]
[1734121270130,23.776884,224.2,224.1,8.45217478]
[1734121270292,23.776884,224.2,224.12,8.45217478]
[1734121270490,23.776884,224.21,224.12,8.45217478]
[1734121270713,11.1512,224.19,224.11,8.45217478]
[1734121274934,20.0,224.22,224.15,8.45217478]
[1734121275133,11.1496,224.23,224.17,8.45217478]
[1734121275344,11.1496,224.23,224.16,8.45217478]
[1734121275523,11.1496,224.23,224.15,8.45217478]
[1734121275826,11.1496,224.23,224.14,8.45217478]
[1734121276319,11.1496,224.23,224.15,8.45217478]
[1734121277430,11.1496,224.23,224.05,35.43687736]
[1734121277431,20.0,224.19,224.05,35.43687736]
[1734121277608,23.776884,224.18,224.08,8.45217478]
[1734121277821,23.776884,224.18,224.1,8.45217478]
[1734121278707,11.1522,224.18,224.12,8.45217478]
[1734121278908,0.5273,224.2,224.06,0.25098]
[1734121278909,20.0,224.2,224.14,8.45217478]
[1734121279619,22.2985,224.23,224.14,8.45217478]
[1734121280205,11.1502,224.22,224.14,8.45217478]
[1734121284109,11.1502,224.22,224.15,8.45217478]
[1734121284309,11.1502,224.22,224.17,8.45217478]
[1734121285416,11.1502,224.22,224.16,8.45217478]
[1734121285828,11.1502,224.22,224.15,8.45217478]
[1734121286124,11.1502,224.22,224.1,0.12549]
[1734121286323,11.1502,224.22,224.14,8.45217478]
[1734121291131,11.1502,224.22,224.1,0.12549]
[1734121291331,11.1502,224.22,224.13,8.45217478]
[1734121291625,11.1502,224.22,224.14,8.45217478]
[1734121292410,11.1502,224.22,224.1,0.12549]
[1734121292610,11.1502,224.22,224.13,8.45217478]
[1734121293025,11.1502,224.22,224.03,35.39211047]
[1734121293227,20.0,224.18,224.08,8.45217478]
[1734121294220,31.1521,224.18,224.11,8.45217478]
[1734121294532,31.1521,224.18,224.12,0.12549]
[1734121294735,31.1521,224.18,224.12,8.57766478]
[1734121295038,31.1521,224.18,224.12,0.12549]
[1734121296227,31.1521,224.18,224.1,8.45217478]
[1734121296410,31.1521,224.18,224.1,0.12549]
[1734121296616,31.1521,224.18,224.1,0.25098]
[1734121297237,11.1497,224.22,224.14,8.45217478]
[1734121297720,11.1497,224.22,224.15,0.12549]
[1734121300342,11.1497,224.22,224.15,8.57766478]
[1734121301040,11.1497,224.22,224.15,0.12549]
[1734121301347,11.1497,224.22,224.14,8.70315478]
[1734121301754,11.1497,224.22,224.15,8.45217478]
[1734121302525,11.1497,224.22,224.14,8.70315478]
[1734121304029,11.1497,224.22,224.14,0.12549]
[1734121304543,11.1497,224.22,224.13,8.45217478]
[1734121304850,23.776884,224.21,224.03,35.39211047]
[1734121305025,23.776884,224.21,224.1,8.45217478]
[1734121305630,20.0,224.18,224.03,5.39211047]
[1734121305820,20.0,224.18,224.07,8.45217478]
[1734121306335,20.0,224.18,224.06,0.12549]
[1734121306644,20.0,224.18,224.05,27.78297736]
[1734121306833,11.1522,224.17,224.08,8.45217478]
[1734121307934,11.1522,224.17,224.05,27.78297736]
[1734121308148,11.1522,224.17,224.06,8.45217478]
[1734121308464,20.0,224.13,224.03,8.45217478]
[1734121308628,20.0,224.13,224.04,8.45217478]
[1734121308828,20.0,224.13,224.06,8.45217478]
[1734121309047,20.0,224.14,224.07,8.45217478]
[1734121309252,11.6795,224.17,224.09,8.45217478]
[1734121309535,11.6795,224.17,224.08,8.45217478]
[1734121310140,11.6795,224.17,224.09,8.45217478]
[1734121312575,11.1522,224.17,224.11,8.45217478]
[1734121312866,20.0,224.18,224.12,8.45217478]
[1734121313488,20.0,224.18,224.11,8.45217478]
[1734121314953,6.98625769,224.22,224.15,8.45217478]
[1734121315157,14.49996629,224.24,224.15,8.45217478]
[1734121315158,6.98625769,224.23,224.15,8.45217478]
[1734121315458,7.51370859,224.24,224.15,8.45217478]
[1734121317249,0.5274509,224.24,224.15,8.45217478]
[1734121317445,20.0,224.22,224.15,8.45217478]
[1734121317852,0.5274509,224.24,224.15,8.45217478]
[1734121318068,0.5274509,224.24,224.16,8.45217478]
[1734121318269,20.0,224.22,224.16,8.45217478]
[1734121318454,20.0,224.21,224.16,8.45217478]
[1734121319750,0.5274509,224.24,224.18,8.45217478]
[1734121323968,0.5274509,224.24,224.1,0.66912725]
[1734121323969,0.5274509,224.24,224.14,0.12549]
[1734121324160,0.5274509,224.24,224.16,8.45217478]
[1734121324473,0.5274509,224.24,224.17,8.45217478]
[1734121327375,0.5274509,224.24,224.18,8.45217478]
[1734121328874,0.5274509,224.24,224.17,8.45217478]
[1734121330457,0.5274509,224.24,224.18,8.45217478]
[1734121331673,0.5274509,224.24,224.14,0.12549]
[1734121332057,0.5274509,224.24,224.17,8.45217478]
[1734121332462,0.5274509,224.24,224.18,8.45217478]
[1734121333457,0.5274509,224.24,224.19,8.45217478]
[1734121339672,0.5274509,224.24,224.15,7.7749]
[1734121339878,0.5274509,224.24,224.15,8.45217478]
[1734121340289,0.5274509,224.24,224.16,8.45217478]
[1734121340589,0.5274509,224.24,224.18,8.45217478]
[1734121341277,11.1492,224.23,224.17,8.45217478]
[1734121342772,0.5274509,224.24,224.17,8.45217478]
[1734121343993,0.5274509,224.24,224.18,8.45217478]
[1734121344179,0.5274509,224.24,224.17,8.45217478]
[1734121344378,0.5274509,224.24,224.18,8.45217478]
[1734121345673,0.5274509,224.24,224.19,8.45217478]
[1734121347275,0.5274509,224.24,224.2,8.45217478]
[1734121347487,0.5274509,224.24,224.12,0.7945476]
[1734121347488,0.5274509,224.24,224.21,8.45217478]
[1734121347679,0.5274509,224.24,224.23,8.45217478]
[1734121347996,0.5274509,224.24,224.22,8.45217478]
[1734121351674,0.5274509,224.24,224.21,8.45217478]
[1734121352396,0.5274509,224.24,224.2,8.45217478]
[1734121355498,0.5274509,224.24,224.18,7.674]
[1734121355701,0.5274509,224.24,224.18,16.12617478]
[1734121357598,0.5274509,224.24,224.18,7.674]
[1734121357797,0.5274509,224.24,224.12,7.70919]
[1734121358101,11.1492,224.23,224.12,7.5837]
[1734121358305,11.1492,224.23,224.15,8.45217478]
[1734121358699,11.1492,224.23,224.14,8.45217478]
[1734121358892,11.1492,224.23,224.09,5.67074381]
[1734121359088,11.1492,224.23,224.11,8.45217478]
[1734121359292,11.1492,224.23,224.12,0.12549]
[1734121359490,23.776884,224.22,224.12,8.45217478]
[1734121360909,11.1502,224.21,224.11,8.45217478]
[1734121362220,11.1502,224.21,224.12,8.45217478]
[1734121362892,11.1502,224.21,224.11,8.45217478]
[1734121363292,23.776884,224.2,224.1,8.45217478]
[1734121363891,23.776884,224.2,224.11,8.45217478]
[1734121365010,11.1502,224.21,224.08,0.12549]
[1734121365011,11.1502,224.21,224.13,8.45217478]
[1734121365309,11.1502,224.21,224.14,8.45217478]
[1734121366502,0.5274509,224.24,224.14,8.45217478]
[1734121366708,20.0,224.21,224.15,8.45217478]
[1734121367210,20.0,224.21,224.14,8.45217478]
[1734121367600,35.4530349,224.24,224.14,8.45217478]
[1734121369114,0.5274509,224.24,224.15,8.45217478]
[1734121369413,0.5274509,224.24,224.2,8.45217478]
[1734121369801,0.5274509,224.24,224.21,8.45217478]
[1734121370016,0.5274509,224.24,224.2,8.45217478]
[1734121371216,0.5274509,224.24,224.21,8.45217478]
[1734121372420,0.5274509,224.24,224.2,8.45217478]
[1734121375098,0.5274509,224.24,224.15,0.25098]
[1734121375099,0.5274509,224.24,224.22,8.45217478]
[1734121375295,0.5274509,224.24,224.21,8.45217478]
[1734121377631,0.5274509,224.24,224.2,8.45217478]
[1734121377839,0.5274509,224.24,224.19,8.45217478]
[1734121378213,0.5274509,224.24,224.2,0.25098]
[1734121378846,0.5274509,224.24,224.19,0.12549]
[1734121379212,0.5274509,224.24,224.19,8.45217478]
[1734121380612,0.5274509,224.24,224.18,8.57766478]
[1734121380932,0.5274509,224.24,224.18,0.12549]
[1734121381123,0.5274509,224.24,224.17,0.12549]
[1734121381734,0.5274509,224.24,224.17,0.25098]
[1734121381946,11.6766509,224.24,224.12,39.25292749]
[1734121382252,20.0,224.2,224.12,11.48065629]
[1734121385439,11.1512,224.19,224.07,8.45217478]
[1734121385631,23.776884,224.18,224.07,8.45217478]
[1734121385834,11.1512,224.19,224.08,8.57766478]
[1734121387344,11.1512,224.19,224.09,8.45217478]
[1734121387651,11.1512,224.19,224.1,8.45217478]
[1734121387965,31.1493,224.23,224.12,8.45217478]
[1734121388258,23.776884,224.22,224.12,8.45217478]
[1734121388462,23.776884,224.22,224.13,8.45217478]
[1734121389236,23.776884,224.22,224.12,8.45217478]
[1734121389942,31.1493,224.23,224.14,8.45217478]
[1734121390150,31.1493,224.23,224.15,8.45217478]
[1734121390533,31.1493,224.23,224.17,8.45217478]
[1734121390534,20.0,224.23,224.17,8.45217478]
[1734121390746,0.5274509,224.24,224.17,8.45217478]
[1734121390747,20.5274509,224.24,224.17,8.45217478]
[1734121391364,0.5274509,224.24,224.16,8.45217478]
[1734121395673,0.5274509,224.24,224.2,8.45217478]
[1734121396289,0.5274509,224.24,224.21,8.45217478]
[1734121397655,0.5274509,224.24,224.22,8.45217478]
[1734121397860,0.5274509,224.24,224.23,8.45217478]
[1734121398054,0.5274509,224.24,224.22,8.45217478]
[1734121398266,0.5274509,224.24,224.21,8.45217478]
[1734121399675,0.5274509,224.24,224.21,0.25098]
[1734121400050,0.5274509,224.24,224.21,8.57766478]
[1734121402988,0.5274509,224.24,224.22,0.25098]
[1734121403158,0.5274509,224.24,224.23,28.82864478]
[1734121403473,0.5274509,224.24,224.23,20.37647]
[1734121403769,0.5274509,224.24,224.23,28.82864478]
[1734121403973,0.5274509,224.24,224.23,20.37647]
[1734121404158,0.5274509,224.24,224.23,28.45217478]
[1734121404665,0.5274509,224.24,224.23,28.70315478]
[1734121405058,0.5274509,224.24,224.23,0.25098]
[1734121405956,0.5274509,224.24,224.23,0.12549]
[1734121406668,0.5274509,224.24,224.23,0.25098]
[1734121411676,0.5274509,224.24,224.23,8.57766478]
[1734121412278,0.5274509,224.24,224.23,8.70315478]
[1734121413971,0.5274509,224.24,224.23,0.12549]
[1734121416088,0.5274509,224.24,224.23,8.57766478]
[1734121417467,0.5274509,224.24,224.23,0.12549]
[1734121420265,0.5274509,224.24,224.23,8.45217478]
[1734121420660,0.5274509,224.24,224.23,8.57766478]
[1734121420863,0.5274509,224.24,224.21,0.25098]
[1734121421085,0.5274509,224.24,224.22,8.45217478]
[1734121421383,0.5274509,224.24,224.23,8.45217478]
[1734121424160,0.5274509,224.24,224.22,8.45217478]
[1734121424362,0.5274509,224.24,224.21,8.70315478]
[1734121424563,0.5274509,224.24,224.22,8.45217478]
[1734121425793,0.5274509,224.24,224.23,8.57766478]
[1734121425995,0.5274509,224.24,224.23,8.82864478]
[1734121437590,0.5274509,224.24,224.23,9.4973873]
[1734121440803,0.5274509,224.24,224.23,8.82864478]
[1734121441004,0.5274509,224.24,224.23,20.0]
[1734121441301,0.5274509,224.24,224.23,8.45217478]
[1734121441488,0.5274509,224.24,224.23,8.57766478]
[1734121441687,0.5274509,224.24,224.23,0.12549]
[1734121442101,0.5274509,224.24,224.22,8.45217478]
[1734121445903,0.5274509,224.24,224.23,8.45217478]
[1734121446230,0.5274509,224.24,224.22,8.45217478]
[1734121447097,0.5274509,224.24,224.23,8.45217478]
[1734121452095,0.5274509,224.24,224.23,8.57766478]
[1734121462222,20.0,224.23,224.1,8.45217478]
[1734121462517,0.5274509,224.24,224.1,8.45217478]
[1734121462736,24.3043349,224.24,224.1,8.45217478]
[1734121463318,24.3043349,224.24,224.11,0.12549]
[1734121463638,24.3043349,224.24,224.13,8.45217478]
[1734121463798,20.0,224.22,224.13,8.45217478]
[1734121464199,0.5274509,224.24,224.15,8.45217478]
[1734121464635,24.3043349,224.24,224.12,28.45217478]
[1734121464806,11.1492,224.23,224.1,0.12549]
[1734121465000,11.1492,224.23,224.12,8.45217478]
[1734121465521,23.776884,224.22,224.1,0.12549]
[1734121465723,23.776884,224.22,224.1,8.45217478]
[1734121465925,23.776884,224.22,224.09,0.37647]
[1734121466430,20.0,224.17,224.09,0.12549]
[1734121466626,20.0,224.17,224.08,8.45217478]
[1734121467118,20.0,224.18,224.09,0.12549]
[1734121467325,20.0,224.18,224.06,7.6286]
[1734121467544,20.0,224.18,224.08,8.45217478]
[1734121467752,31.152,224.18,224.07,8.57766478]
[1734121467918,23.776884,224.17,224.07,8.45217478]
[1734121468123,23.776884,224.17,224.06,16.08077478]
[1734121468834,23.776884,224.17,224.07,8.45217478]
[1734121470126,23.776884,224.17,224.08,8.45217478]
[1734121470429,31.152,224.18,224.09,8.45217478]
[1734121471022,31.152,224.18,224.08,8.45217478]
[1734121471236,23.776884,224.17,224.07,8.45217478]
[1734121471830,23.776884,224.17,224.08,8.45217478]
[1734121472027,23.776884,224.17,224.09,8.45217478]
[1734121472644,23.776884,224.17,224.08,8.45217478]
[1734121473353,11.1527,224.16,224.07,8.45217478]
[1734121474030,23.776884,224.15,224.03,0.12549]
[1734121474228,23.776884,224.15,224.05,8.45217478]
[1734121475141,23.776884,224.13,224.02,11.48554952]
[1734121475543,23.776884,224.13,224.03,8.45217478]
[1734121475730,23.776884,224.13,224.04,8.45217478]
[1734121476045,23.776884,224.13,224.05,8.45217478]
[1734121476450,23.776884,224.13,224.04,8.45217478]
[1734121477035,31.1537,224.14,224.07,8.45217478]
[1734121477240,31.1537,224.14,224.09,8.45217478]
[1734121477440,31.1537,224.14,224.08,8.45217478]
[1734121478142,23.776884,224.13,224.02,11.48554952]
[1734121478345,23.776884,224.13,224.05,8.45217478]
[1734121478928,23.776884,224.13,224.06,8.45217478]
[1734121479762,31.1537,224.14,224.07,8.45217478]
[1734121481251,31.1537,224.14,224.06,8.45217478]
[1734121481843,31.1537,224.14,224.02,11.48554952]
[1734121481844,23.776884,224.13,224.02,11.48554952]
[1734121482042,23.776884,224.13,224.02,19.9377243]
[1734121483067,23.776884,224.13,224.03,8.45217478]
[1734121483734,23.776884,224.13,224.04,8.45217478]
[1734121484145,23.776884,224.13,224.05,8.45217478]
[1734121484734,23.776884,224.13,224.06,8.45217478]
[1734121484934,31.1537,224.14,224.06,8.45217478]
[1734121486756,23.776884,224.13,224.02,11.48554952]
[1734121486950,23.776884,224.13,224.04,8.45217478]
[1734121487156,31.1537,224.14,224.05,8.45217478]
[1734121487474,31.1537,224.14,224.02,11.48554952]
[1734121487475,11.1537,224.14,224.03,0.12549]
[1734121487640,11.1537,224.14,224.06,8.45217478]
[1734121491864,0.5273,224.26,224.13,8.45217478]
[1734121492066,0.5273,224.26,224.14,8.45217478]
[1734121493158,23.776884,224.22,224.14,8.45217478]
[1734121493563,11.1496,224.23,224.15,8.45217478]
[1734121494065,11.1496,224.23,224.14,8.45217478]
[1734121494558,11.1496,224.23,224.11,20.0]
[1734121494759,11.1496,224.23,224.14,8.45217478]
[1734121495140,23.776884,224.22,224.14,8.45217478]
[1734121496655,23.776884,224.22,224.15,8.45217478]
[1734121496960,23.776884,224.22,224.16,8.45217478]
[1734121497963,23.776884,224.22,224.15,8.45217478]
[1734121500168,23.776884,224.22,224.16,8.45217478]
[1734121500373,11.1496,224.23,224.16,8.45217478]
[1734121502450,11.1496,224.23,224.15,8.45217478]
[1734121506070,11.1496,224.23,224.16,8.45217478]
[1734121508877,23.776884,224.25,224.17,8.45217478]
[1734121511483,23.776884,224.25,224.16,8.45217478]
[1734121512386,23.776884,224.25,224.13,7.9365]
[1734121512686,2.74051949,224.28,224.12,8.45217478]
[1734121512687,23.776884,224.22,224.12,8.45217478]
[1734121512865,23.776884,224.22,224.11,19.93444711]
[1734121513260,23.776884,224.22,224.12,8.45217478]
[1734121514065,23.776884,224.22,224.11,11.48227233]
[1734121515583,23.776884,224.18,224.11,11.48227233]
[1734121516092,23.776884,224.2,224.11,11.48227233]
[1734121516888,23.776884,224.18,224.11,11.48227233]
[1734121517587,1.0547509,224.24,224.12,8.45217478]
[1734121517768,23.776884,224.22,224.14,8.45217478]
[1734121517970,11.1496,224.23,224.14,8.45217478]
[1734121518584,11.1496,224.23,224.15,8.45217478]
[1734121518967,11.1496,224.23,224.14,8.45217478]
[1734121519374,11.1496,224.23,224.15,8.45217478]
[1734121521095,11.1496,224.23,224.17,8.45217478]
[1734121525969,0.5274509,224.24,224.17,8.45217478]
[1734121526175,0.5274509,224.24,224.2,8.45217478]
[1734121526595,0.5274509,224.24,224.21,8.45217478]
[1734121526894,0.5274509,224.24,224.22,8.45217478]
[1734121527674,0.5274509,224.24,224.23,8.45217478]
[1734121531498,0.5274509,224.24,224.16,1.5786]
[1734121531678,0.5274509,224.24,224.16,10.03077478]
[1734121532188,0.5274509,224.24,224.18,8.45217478]
[1734121534601,0.5274509,224.24,224.17,8.45217478]
[1734121534998,0.5274509,224.24,224.15,6.1782]
[1734121535206,0.5274509,224.24,224.15,14.63037478]
[1734121535582,0.5274509,224.24,224.18,8.45217478]
[1734121535785,0.5274509,224.24,224.17,8.45217478]
[1734121536000,0.5274509,224.24,224.16,8.45217478]
[1734121536300,0.5274509,224.24,224.17,8.45217478]
[1734121537389,0.5274509,224.24,224.16,8.45217478]
[1734121537595,23.776884,224.23,224.11,11.48227233]
[1734121537913,11.6766509,224.24,224.16,8.45217478]
[1734121539186,11.6766509,224.24,224.15,8.45217478]
[1734121540413,11.6766509,224.24,224.16,8.45217478]
[1734121540794,11.6766509,224.24,224.17,8.45217478]
[1734121541305,0.5274509,224.24,224.19,8.45217478]
[1734121544810,0.5274509,224.24,224.21,8.45217478]
[1734121545002,0.5274509,224.24,224.2,8.45217478]
[1734121548105,0.5274509,224.24,224.21,8.45217478]
[1734121548506,0.5274509,224.24,224.2,8.45217478]
[1734121551697,0.5274509,224.24,224.22,8.45217478]
[1734121551912,0.5274509,224.24,224.23,8.45217478]
[1734121560725,0.5274509,224.24,224.22,8.45217478]
[1734121561708,0.5274509,224.24,224.23,8.45217478]
[1734121561911,0.5274509,224.24,224.22,8.45217478]
[1734121564216,0.5274509,224.24,224.23,8.45217478]
[1734121564536,0.5274509,224.24,224.23,8.70315478]
[1734121566727,20.0,224.34,224.23,8.70315478]
[1734121566928,20.0,224.34,224.24,8.45217478]
[1734121567108,20.0,224.33,224.24,8.45217478]
[1734121568228,11.1438,224.34,224.24,8.45217478]
[1734121569927,11.1438,224.34,224.27,8.45217478]
[1734121571319,23.776884,224.37,224.27,8.45217478]
[1734121572545,11.1428,224.36,224.28,8.45217478]
[1734121573033,10.1428,224.36,224.28,8.45217478]
[1734121573632,23.776884,224.39,224.29,8.45217478]
[1734121573942,23.776884,224.39,224.28,8.45217478]
[1734121574818,23.776884,224.4,224.28,8.45217478]
[1734121575131,9.1418,224.38,224.28,8.45217478]
[1734121578715,23.776884,224.37,224.26,7.9783]
[1734121578914,20.0,224.34,224.26,7.9783]
[1734121580048,31.1439,224.34,224.26,7.9783]
[1734121583636,31.1439,224.34,224.26,16.43047478]
[1734121583949,31.1439,224.34,224.26,7.9783]
[1734121587125,31.1439,224.34,224.26,16.43047478]
[1734121589332,31.1439,224.34,224.26,7.9783]
[1734121590257,31.1439,224.34,224.26,16.43047478]
[1734121592331,31.1439,224.34,224.27,8.45217478]
[1734121592635,11.1439,224.34,224.28,8.45217478]
[1734121593237,11.1439,224.34,224.26,7.9783]
[1734121594268,11.1439,224.34,224.26,16.43047478]
[1734121596146,11.1439,224.34,224.26,7.9783]
[1734121599135,11.1439,224.34,224.26,16.43047478]
[1734121600935,30.76667343,224.37,224.27,8.45217478]
[1734121601266,6.98978943,224.37,224.3,8.45217478]
[1734121601461,11.1421,224.38,224.29,8.45217478]
[1734121605069,11.1421,224.38,224.28,8.45217478]
[1734121608557,11.1421,224.38,224.29,8.45217478]
[1734121610387,6.98978943,224.41,224.32,8.45217478]
[1734121610562,6.98978943,224.41,224.34,8.45217478]
[1734121610861,11.1402,224.42,224.34,8.45217478]
[1734121612262,23.776884,224.41,224.29,20.0]
[1734121612571,23.776884,224.41,224.29,28.45217478]
[1734121613277,23.776884,224.41,224.3,8.45217478]
[1734121616579,11.1408,224.4,224.29,28.45217478]
[1734121617875,23.776884,224.39,224.29,20.0]
[1734121618872,23.776884,224.41,224.29,20.0]
[1734121619078,34.917184,224.41,224.29,20.0]
[1734121620484,34.917184,224.41,224.29,28.45217478]
[1734121620802,34.917184,224.41,224.3,8.45217478]
[1734121620985,34.917184,224.41,224.29,20.0]
[1734121621596,7.51724033,224.46,224.4,8.45217478]
[1734121621774,0.5274509,224.46,224.4,8.45217478]
[1734121622292,0.5274509,224.46,224.39,8.45217478]
[1734121622493,0.5274509,224.46,224.41,8.45217478]
[1734121623476,0.5274509,224.46,224.43,8.45217478]
[1734121624275,0.5274509,224.46,224.4,1.524]
[1734121624480,0.5274509,224.46,224.42,8.45217478]
[1734121625071,0.5274509,224.46,224.43,8.45217478]
[1734121625277,0.5274509,224.46,224.4,1.524]
[1734121625479,0.5274509,224.46,224.44,8.45217478]
[1734121626282,0.5274509,224.46,224.43,8.45217478]
[1734121626476,0.5274509,224.46,224.44,8.45217478]
[1734121627277,0.5274509,224.46,224.4,1.524]
[1734121627489,0.5274509,224.46,224.44,8.45217478]
[1734121627996,0.5274509,224.46,224.42,8.45217478]
[1734121628178,0.5274509,224.46,224.34,7.6769]
[1734121628378,0.5274509,224.46,224.37,8.45217478]
[1734121628780,0.5274509,224.46,224.34,7.6769]
[1734121628781,20.0,224.44,224.34,7.6769]
[1734121628996,23.776884,224.43,224.34,16.12907478]
[1734121630201,23.776884,224.43,224.36,8.45217478]
[1734121630980,11.1383,224.45,224.38,8.45217478]
[1734121632397,11.1383,224.45,224.37,8.45217478]
[1734121633301,11.1383,224.45,224.38,8.45217478]
[1734121634083,0.5274509,224.46,224.39,8.45217478]
[1734121634284,0.5274509,224.46,224.41,8.45217478]
[1734121635599,0.5274509,224.46,224.44,8.45217478]
[1734121636496,0.5274509,224.46,224.36,0.12549]
[1734121636700,0.5274509,224.46,224.38,0.25098]
[1734121636892,0.5274509,224.46,224.4,8.45217478]
[1734121637782,0.5274509,224.46,224.42,8.45217478]
[1734121638301,0.5274509,224.46,224.43,8.45217478]
[1734121638609,0.5274509,224.46,224.41,8.45217478]
[1734121639110,0.5274509,224.46,224.4,8.45217478]
[1734121640984,0.5274509,224.46,224.41,8.45217478]
[1734121642506,0.5274509,224.46,224.42,8.45217478]
[1734121643985,0.5274509,224.46,224.43,8.45217478]
[1734121646688,0.5274509,224.46,224.45,8.45217478]
[1734121647188,0.5274509,224.46,224.44,8.45217478]
[1734121647584,0.5274509,224.46,224.45,8.45217478]
[1734121648997,0.5274509,224.46,224.45,8.82864478]
[1734121651342,0.5274509,224.46,224.42,7.8504]
[1734121651511,0.5274509,224.46,224.44,8.45217478]
[1734121651816,0.5274509,224.46,224.45,8.45217478]
[1734121652000,0.5274509,224.46,224.45,15.51689415]
[1734121652494,0.5274509,224.46,224.45,15.26591415]
[1734121653718,0.5274509,224.46,224.44,8.45217478]
[1734121655121,0.5274509,224.46,224.42,7.8504]
[1734121655315,0.5274509,224.46,224.43,8.45217478]
[1734121655715,0.7949509,224.46,224.43,8.45217478]
[1734121660911,0.7949509,224.46,224.38,20.0]
[1734121661107,0.7949509,224.46,224.4,8.45217478]
[1734121662110,0.7949509,224.46,224.39,28.45217478]
[1734121665214,0.7949509,224.46,224.41,8.45217478]
[1734121665433,0.7949509,224.46,224.42,8.45217478]
[1734121665616,0.7949509,224.46,224.43,8.45217478]
[1734121665811,0.7949509,224.46,224.45,28.45217478]
[1734121666016,0.7949509,224.46,224.45,36.82094478]
[1734121666618,11.1322,224.58,224.45,36.56996478]
[1734121666822,11.1322,224.58,224.45,27.9923]
[1734121667129,11.1322,224.58,224.47,8.45217478]
[1734121667638,35.28063044,224.63,224.48,8.45217478]
[1734121667812,33.3882,224.63,224.48,8.45217478]
[1734121668221,6.97552129,224.62,224.48,8.45217478]
[1734121668829,11.1304,224.61,224.48,8.45217478]
[1734121669043,23.776884,224.6,224.48,8.45217478]
[1734121669242,23.776884,224.6,224.47,8.45217478]
[1734121669723,23.776884,224.61,224.47,8.45217478]
[1734121669931,11.1313,224.59,224.47,8.45217478]
[1734121671029,11.1313,224.59,224.48,8.45217478]
[1734121671407,11.1313,224.59,224.49,8.45217478]
[1734121674412,11.1313,224.59,224.46,0.37647]
[1734121674612,11.1313,224.59,224.47,8.45217478]
[1734121675514,10.1313,224.59,224.47,8.45217478]
[1734121679336,23.776884,224.58,224.45,20.0]
[1734121680019,23.776884,224.58,224.39,64.27434718]
[1734121680020,20.0,224.5,224.34,7.8162]
[1734121680335,20.0,224.5,224.36,30.0]
[1734121680336,23.776884,224.49,224.36,30.0]
[1734121680521,23.776884,224.49,224.36,38.45217478]
[1734121680842,23.776884,224.49,224.36,30.0]
[1734121681137,23.776884,224.49,224.35,8.45217478]
[1734121681438,20.0,224.5,224.16,17.819591]
[1734121681439,0.25098,224.46,224.28,8.0116]
[1734121681619,23.776884,224.43,224.31,8.45217478]
[1734121682214,23.776884,224.43,224.32,8.45217478]
[1734121682420,11.1396,224.43,224.34,8.45217478]
[1734121683131,11.1396,224.43,224.35,8.45217478]
[1734121684651,20.0,224.45,224.36,8.45217478]
[1734121686018,20.0,224.45,224.35,8.45217478]
[1734121686222,20.0,224.45,224.34,8.45217478]
[1734121686429,31.1385,224.45,224.32,8.45217478]
[1734121686632,23.776884,224.44,224.31,8.45217478]
[1734121687039,23.776884,224.44,224.32,0.25098]
[1734121687423,11.1393,224.43,224.32,0.25098]
[1734121688450,11.1393,224.43,224.32,8.45217478]
[1734121689342,11.1393,224.43,224.33,8.45217478]
[1734121690023,11.1393,224.43,224.34,8.45217478]
[1734121690342,11.1393,224.43,224.35,8.45217478]
[1734121690542,11.1393,224.43,224.36,8.45217478]
[1734121691029,11.1393,224.43,224.35,8.45217478]
[1734121694057,20.0,224.46,224.35,8.45217478]
[1734121696338,31.1382,224.46,224.35,8.45217478]
[1734121698839,31.1382,224.46,224.36,8.45217478]
[1734121699632,31.1382,224.46,224.32,0.66841303]
[1734121699859,11.1388,224.44,224.32,8.57766478]